[Event "Titled Tuesday Blitz July 18 Late 2023"]
[White "Meshkovs, Nikita"]
[Black "Berezin, Viktor"]
[WhiteFideId "11602740"]
[BlackFideId "14107872"]
[WhiteElo "2739"]
[BlackElo "2510"]
[Result "1-0"]
[Round "3"]
[TimeControl "180+2"]
[Date "2023.07.18"]
[WhiteClock "0:01:02"]
[BlackClock "0:00:11"]
[Board "51"]

1. d4 {[%clk 0:02:54]}  Nf6 {[%clk 0:02:59]} 2. c4 {[%clk 0:02:52]}  g6 {[%clk 0:02:57]} 3. h4 {[%clk 0:02:48]}  h5 {[%clk 0:02:56]} 4. Nc3 {[%clk 0:02:45]}  Bg7 {[%clk 0:02:57]} 5. e4 {[%clk 0:02:40]}  d6 {[%clk 0:02:57]} 6. Bg5 {[%clk 0:02:36]}  c6 {[%clk 0:02:44]} 7. Qd2 {[%clk 0:02:33]}  Nbd7 {[%clk 0:02:38]} 8. O-O-O {[%clk 0:02:30]}  Qa5 {[%clk 0:02:30]} 9. Kb1 {[%clk 0:02:26]}  a6 {[%clk 0:02:30]} 10. Nf3 {[%clk 0:02:16]}  b5 {[%clk 0:02:27]} 11. e5 {[%clk 0:02:07]}  b4 {[%clk 0:01:58]} 12. exf6 {[%clk 0:02:04]}  Nxf6 {[%clk 0:01:42]} 13. Ne2 {[%clk 0:01:39]}  Bf5+ {[%clk 0:01:39]} 14. Ka1 {[%clk 0:01:38]}  Ne4 {[%clk 0:01:36]} 15. Qe1 {[%clk 0:01:30]}  Qa4 {[%clk 0:01:05]} 16. Nc1 {[%clk 0:01:20]}  b3 {[%clk 0:00:43]} 17. Nxb3 {[%clk 0:01:18]}  Rb8 {[%clk 0:00:41]} 18. Nfd2 {[%clk 0:01:15]}  Nxg5 {[%clk 0:00:33]} 19. hxg5 {[%clk 0:01:16]}  Bc2 {[%clk 0:00:33]} 20. Rh3 {[%clk 0:01:16]}  Bxd1 {[%clk 0:00:30]} 21. Qxd1 {[%clk 0:01:17]}  Bxd4 {[%clk 0:00:29]} 22. Be2 {[%clk 0:01:11]}  Bg7 {[%clk 0:00:20]} 23. Re3 {[%clk 0:01:05]}  e6 {[%clk 0:00:20]} 24. Ne4 {[%clk 0:01:02]}  d5 {[%clk 0:00:18]} 25. Nf6+ {[%clk 0:01:02]}  Bxf6 {[%clk 0:00:16]} 26. gxf6 {[%clk 0:01:03]}  Kd7 {[%clk 0:00:11]} 27. Nc5+ {[%clk 0:01:02]} 1-0


[Site "https://www.chess.com"]

[Event "Titled Tuesday Blitz July 18 Late 2023"]
[White "Haydon, David L"]
[Black "Bueno, Alfeu Junior Varela"]
[WhiteFideId "415405"]
[BlackFideId "2108879"]
[WhiteElo "2704"]
[BlackElo "2403"]
[Result "1-0"]
[Round "3"]
[TimeControl "180+2"]
[Date "2023.07.18"]
[WhiteClock "0:01:26"]
[BlackClock "0:00:01"]
[Board "53"]

1. e4 {[%clk 0:02:56]}  e6 {[%clk 0:03:00]} 2. d4 {[%clk 0:02:55]}  d5 {[%clk 0:03:00]} 3. Nd2 {[%clk 0:02:56]}  Nf6 {[%clk 0:03:00]} 4. e5 {[%clk 0:02:55]}  Nfd7 {[%clk 0:03:01]} 5. f4 {[%clk 0:02:56]}  c5 {[%clk 0:03:01]} 6. Ngf3 {[%clk 0:02:56]}  Nc6 {[%clk 0:03:02]} 7. c3 {[%clk 0:02:56]}  f6 {[%clk 0:03:02]} 8. exf6 {[%clk 0:02:55]}  Nxf6 {[%clk 0:03:02]} 9. Bd3 {[%clk 0:02:53]}  Bd6 {[%clk 0:02:59]} 10. g3 {[%clk 0:02:48]}  Qb6 {[%clk 0:02:54]} 11. dxc5 {[%clk 0:02:43]}  Bxc5 {[%clk 0:02:55]} 12. Nb3 {[%clk 0:02:43]}  Bf2+ {[%clk 0:02:55]} 13. Kf1 {[%clk 0:02:42]}  e5 {[%clk 0:02:28]} 14. fxe5 {[%clk 0:02:30]}  Bh3+ {[%clk 0:02:26]} 15. Ke2 {[%clk 0:02:30]}  Ng4 {[%clk 0:01:02]} 16. Bf4 {[%clk 0:02:25]}  O-O {[%clk 0:01:00]} 17. Bxh7+ {[%clk 0:02:20]}  Kxh7 {[%clk 0:00:52]} 18. Ng5+ {[%clk 0:02:20]}  Kg8 {[%clk 0:00:50]} 19. Qxd5+ {[%clk 0:02:17]}  Kh8 {[%clk 0:00:47]} 20. Nxh3 {[%clk 0:01:55]}  Rae8 {[%clk 0:00:13]} 21. Kf3 {[%clk 0:01:49]}  Ncxe5+ {[%clk 0:00:12]} 22. Kg2 {[%clk 0:01:45]}  Rxf4 {[%clk 0:00:11]} 23. Rhe1 {[%clk 0:01:33]}  Ne3+ {[%clk 0:00:03]} 24. Rxe3 {[%clk 0:01:32]}  Bxe3 {[%clk 0:00:03]} 25. Nxf4 {[%clk 0:01:28]}  Bxf4 {[%clk 0:00:03]} 26. gxf4 {[%clk 0:01:29]}  Ng4 {[%clk 0:00:03]} 27. Qh5+ {[%clk 0:01:28]}  Kg8 {[%clk 0:00:02]} 28. Qxe8+ {[%clk 0:01:26]}  Kh7 {[%clk 0:00:01]} 1-0


[Site "https://www.chess.com"]

[Event "Titled Tuesday Blitz July 18 Late 2023"]
[White "Cruz, William Ferreira Da"]
[Black "Schnaider, Ilan"]
[WhiteFideId "2118050"]
[BlackFideId "169013"]
[WhiteElo "2317"]
[BlackElo "2657"]
[Result "0-1"]
[Round "3"]
[TimeControl "180+2"]
[Date "2023.07.18"]
[WhiteClock "0:00:00"]
[BlackClock "0:01:45"]
[Board "56"]

1. d4 {[%clk 0:03:00]}  c6 {[%clk 0:03:00]} 2. c4 {[%clk 0:02:59]}  d5 {[%clk 0:03:00]} 3. Nc3 {[%clk 0:02:59]}  Nf6 {[%clk 0:03:00]} 4. Nf3 {[%clk 0:02:59]}  e6 {[%clk 0:03:00]} 5. e3 {[%clk 0:02:51]}  Nbd7 {[%clk 0:03:00]} 6. Qc2 {[%clk 0:02:51]}  b6 {[%clk 0:03:00]} 7. cxd5 {[%clk 0:02:29]}  cxd5 {[%clk 0:02:59]} 8. Nb5 {[%clk 0:01:58]}  Bb4+ {[%clk 0:02:58]} 9. Bd2 {[%clk 0:01:57]}  Bxd2+ {[%clk 0:02:59]} 10. Nxd2 {[%clk 0:01:56]}  O-O {[%clk 0:03:00]} 11. Qc7 {[%clk 0:01:35]}  Qe7 {[%clk 0:02:57]} 12. Qd6 {[%clk 0:01:34]}  Qd8 {[%clk 0:02:52]} 13. Qc7 {[%clk 0:01:17]}  a6 {[%clk 0:02:48]} 14. Qxd8 {[%clk 0:01:10]}  Rxd8 {[%clk 0:02:49]} 15. Nc3 {[%clk 0:00:55]}  b5 {[%clk 0:02:49]} 16. Bd3 {[%clk 0:00:50]}  Nb6 {[%clk 0:02:49]} 17. Ke2 {[%clk 0:00:43]}  Bb7 {[%clk 0:02:49]} 18. Rhc1 {[%clk 0:00:42]}  Rac8 {[%clk 0:02:49]} 19. Nb3 {[%clk 0:00:38]}  Nfd7 {[%clk 0:02:48]} 20. Na5 {[%clk 0:00:37]}  Ba8 {[%clk 0:02:48]} 21. Nd1 {[%clk 0:00:28]}  Nc4 {[%clk 0:02:42]} 22. Nb3 {[%clk 0:00:18]}  e5 {[%clk 0:02:41]} 23. Nd2 {[%clk 0:00:15]}  exd4 {[%clk 0:02:41]} 24. exd4 {[%clk 0:00:15]}  Re8+ {[%clk 0:02:41]} 25. Ne3 {[%clk 0:00:10]}  Ndb6 {[%clk 0:02:38]} 26. b3 {[%clk 0:00:09]}  Nd6 {[%clk 0:02:38]} 27. Rxc8 {[%clk 0:00:08]}  Rxc8 {[%clk 0:02:39]} 28. Kd1 {[%clk 0:00:07]}  Rc3 {[%clk 0:02:39]} 29. Be2 {[%clk 0:00:06]}  Rc7 {[%clk 0:02:19]} 30. Rc1 {[%clk 0:00:07]}  Re7 {[%clk 0:02:20]} 31. Bf3 {[%clk 0:00:07]}  f5 {[%clk 0:02:18]} 32. Rc5 {[%clk 0:00:06]}  Ne4 {[%clk 0:02:16]} 33. Bxe4 {[%clk 0:00:06]}  fxe4 {[%clk 0:02:15]} 34. Ke2 {[%clk 0:00:06]}  h5 {[%clk 0:02:10]} 35. Nb1 {[%clk 0:00:06]}  b4 {[%clk 0:02:05]} 36. a3 {[%clk 0:00:06]}  bxa3 {[%clk 0:02:04]} 37. Nxa3 {[%clk 0:00:06]}  Rb7 {[%clk 0:02:02]} 38. Nac2 {[%clk 0:00:06]}  Kf7 {[%clk 0:01:56]} 39. b4 {[%clk 0:00:07]}  Ra7 {[%clk 0:01:51]} 40. b5 {[%clk 0:00:06]}  Nd7 {[%clk 0:01:50]} 41. Rc8 {[%clk 0:00:05]}  axb5 {[%clk 0:01:49]} 42. Nb4 {[%clk 0:00:05]}  Nf6 {[%clk 0:01:47]} 43. Rb8 {[%clk 0:00:03]}  Bb7 {[%clk 0:01:46]} 44. Rd8 {[%clk 0:00:00]}  Ke7 {[%clk 0:01:45]} 0-1


[Site "https://www.chess.com"]

[Event "Titled Tuesday Blitz July 18 Late 2023"]
[White "Ansh M Shah"]
[Black "Svane, Rasmus"]
[WhiteFideId "25033379"]
[BlackFideId "4657101"]
[WhiteElo "2495"]
[BlackElo "2955"]
[Result "0-1"]
[Round "3"]
[TimeControl "180+2"]
[Date "2023.07.18"]
[WhiteClock "0:00:00"]
[BlackClock "0:00:16"]
[Board "61"]

1. d4 {[%clk 0:02:56]}  d5 {[%clk 0:02:59]} 2. c4 {[%clk 0:02:56]}  e6 {[%clk 0:03:00]} 3. Nc3 {[%clk 0:02:56]}  a6 {[%clk 0:03:00]} 4. g3 {[%clk 0:02:51]}  dxc4 {[%clk 0:02:59]} 5. Bg2 {[%clk 0:02:52]}  Nf6 {[%clk 0:02:57]} 6. Nf3 {[%clk 0:02:51]}  b5 {[%clk 0:02:57]} 7. a4 {[%clk 0:02:48]}  b4 {[%clk 0:02:37]} 8. Nb1 {[%clk 0:02:47]}  Bb7 {[%clk 0:02:36]} 9. O-O {[%clk 0:02:47]}  c5 {[%clk 0:02:35]} 10. Nbd2 {[%clk 0:02:46]}  cxd4 {[%clk 0:02:32]} 11. Nxc4 {[%clk 0:02:47]}  Bc5 {[%clk 0:02:32]} 12. b3 {[%clk 0:02:46]}  O-O {[%clk 0:02:30]} 13. Bb2 {[%clk 0:02:47]}  Nc6 {[%clk 0:02:27]} 14. Rc1 {[%clk 0:02:26]}  Rc8 {[%clk 0:02:26]} 15. Nfe5 {[%clk 0:02:15]}  Nd5 {[%clk 0:01:55]} 16. Nxc6 {[%clk 0:02:10]}  Bxc6 {[%clk 0:01:56]} 17. Bxd4 {[%clk 0:02:07]}  Bxd4 {[%clk 0:01:57]} 18. Qxd4 {[%clk 0:02:06]}  Nc3 {[%clk 0:01:57]} 19. Qe3 {[%clk 0:01:55]}  Bxg2 {[%clk 0:01:57]} 20. Kxg2 {[%clk 0:01:56]}  Qd5+ {[%clk 0:01:28]} 21. Kg1 {[%clk 0:01:55]}  Qc5 {[%clk 0:01:23]} 22. Rc2 {[%clk 0:01:41]}  Qxe3 {[%clk 0:01:21]} 23. Nxe3 {[%clk 0:01:42]}  Rfd8 {[%clk 0:01:18]} 24. Nd1 {[%clk 0:01:22]}  Ne4 {[%clk 0:01:05]} 25. Rxc8 {[%clk 0:01:11]}  Rxc8 {[%clk 0:01:06]} 26. Ne3 {[%clk 0:01:12]}  Rc3 {[%clk 0:01:02]} 27. Rd1 {[%clk 0:01:10]}  g6 {[%clk 0:00:59]} 28. Rd4 {[%clk 0:01:10]}  Nc5 {[%clk 0:00:53]} 29. Rxb4 {[%clk 0:01:08]}  Nxb3 {[%clk 0:00:50]} 30. Rc4 {[%clk 0:00:56]}  Rxc4 {[%clk 0:00:42]} 31. Nxc4 {[%clk 0:00:57]}  Kf8 {[%clk 0:00:40]} 32. Kg2 {[%clk 0:00:54]}  Ke7 {[%clk 0:00:40]} 33. Kf3 {[%clk 0:00:55]}  f6 {[%clk 0:00:37]} 34. Ke3 {[%clk 0:00:54]}  Kd7 {[%clk 0:00:37]} 35. h4 {[%clk 0:00:46]}  Kc6 {[%clk 0:00:37]} 36. g4 {[%clk 0:00:39]}  Kc5 {[%clk 0:00:37]} 37. Nb2 {[%clk 0:00:35]}  Kb4 {[%clk 0:00:37]} 38. g5 {[%clk 0:00:33]}  fxg5 {[%clk 0:00:33]} 39. hxg5 {[%clk 0:00:34]}  Nc5 {[%clk 0:00:33]} 40. Kd4 {[%clk 0:00:29]}  Nxa4 {[%clk 0:00:31]} 41. Nd3+ {[%clk 0:00:21]}  Kb3 {[%clk 0:00:30]} 42. e4 {[%clk 0:00:17]}  a5 {[%clk 0:00:28]} 43. f4 {[%clk 0:00:17]}  Kc2 {[%clk 0:00:18]} 44. Ne5 {[%clk 0:00:06]}  Nc3 {[%clk 0:00:15]} 45. Nc4 {[%clk 0:00:06]}  a4 {[%clk 0:00:15]} 46. Ke5 {[%clk 0:00:03]}  Kb3 {[%clk 0:00:16]} 47. Nd2+ {[%clk 0:00:03]}  Kb4 {[%clk 0:00:15]} 48. Kxe6 {[%clk 0:00:02]}  a3 {[%clk 0:00:16]} 49. e5 {[%clk 0:00:00]}  a2 {[%clk 0:00:16]} 0-1


[Site "https://www.chess.com"]

[Event "Titled Tuesday Blitz July 18 Late 2023"]
[White "Rasulov, Vugar"]
[Black "Mackster23"]
[WhiteFideId "13402390"]
[WhiteElo "2851"]
[BlackElo "2485"]
[Result "1-0"]
[Round "3"]
[TimeControl "180+2"]
[Date "2023.07.18"]
[WhiteClock "0:00:42"]
[BlackClock "0:00:01"]
[Board "65"]

1. e4 {[%clk 0:03:00]}  e6 {[%clk 0:03:00]} 2. Nf3 {[%clk 0:02:58]}  d5 {[%clk 0:03:00]} 3. e5 {[%clk 0:02:59]}  c5 {[%clk 0:03:00]} 4. d4 {[%clk 0:02:59]}  cxd4 {[%clk 0:02:59]} 5. Qxd4 {[%clk 0:03:00]}  Nc6 {[%clk 0:02:54]} 6. Qf4 {[%clk 0:03:00]}  Qc7 {[%clk 0:02:41]} 7. Bd3 {[%clk 0:02:59]}  f6 {[%clk 0:02:40]} 8. exf6 {[%clk 0:02:42]}  Qxf4 {[%clk 0:02:40]} 9. Bxf4 {[%clk 0:02:42]}  gxf6 {[%clk 0:02:40]} 10. Bd2 {[%clk 0:02:32]}  e5 {[%clk 0:02:39]} 11. Bb5 {[%clk 0:02:30]}  a6 {[%clk 0:02:37]} 12. Ba4 {[%clk 0:02:28]}  Bg4 {[%clk 0:02:33]} 13. h3 {[%clk 0:02:24]}  Bxf3 {[%clk 0:02:32]} 14. gxf3 {[%clk 0:02:24]}  O-O-O {[%clk 0:02:25]} 15. Nc3 {[%clk 0:02:24]}  Nd4 {[%clk 0:02:22]} 16. O-O-O {[%clk 0:02:15]}  Nxf3 {[%clk 0:02:16]} 17. Bb3 {[%clk 0:02:15]}  Nxd2 {[%clk 0:02:13]} 18. Kxd2 {[%clk 0:02:15]}  Ne7 {[%clk 0:02:10]} 19. Ke2 {[%clk 0:02:14]}  d4 {[%clk 0:02:09]} 20. Ne4 {[%clk 0:02:13]}  f5 {[%clk 0:01:57]} 21. Ng5 {[%clk 0:02:12]}  Nd5 {[%clk 0:01:14]} 22. Nf7 {[%clk 0:02:05]}  Nf4+ {[%clk 0:01:12]} 23. Kf1 {[%clk 0:02:03]}  Bg7 {[%clk 0:01:09]} 24. Rg1 {[%clk 0:01:58]}  Bf6 {[%clk 0:01:09]} 25. Rg3 {[%clk 0:01:56]}  Kb8 {[%clk 0:00:58]} 26. Rf3 {[%clk 0:01:54]}  Rhe8 {[%clk 0:00:53]} 27. Nxd8 {[%clk 0:01:54]}  Rxd8 {[%clk 0:00:54]} 28. Bc4 {[%clk 0:01:51]}  Bg5 {[%clk 0:00:45]} 29. Rg3 {[%clk 0:01:49]}  h6 {[%clk 0:00:43]} 30. a4 {[%clk 0:01:42]}  e4 {[%clk 0:00:37]} 31. a5 {[%clk 0:01:28]}  Kc7 {[%clk 0:00:36]} 32. Ra1 {[%clk 0:01:25]}  Rd6 {[%clk 0:00:29]} 33. Raa3 {[%clk 0:01:17]}  Rc6 {[%clk 0:00:27]} 34. Ra4 {[%clk 0:01:17]}  Rd6 {[%clk 0:00:25]} 35. Be2 {[%clk 0:01:02]}  Ng6 {[%clk 0:00:23]} 36. Rc4+ {[%clk 0:00:51]}  Kb8 {[%clk 0:00:23]} 37. Rc5 {[%clk 0:00:51]}  f4 {[%clk 0:00:20]} 38. Rgxg5 {[%clk 0:00:50]}  hxg5 {[%clk 0:00:20]} 39. Rxg5 {[%clk 0:00:50]}  f3 {[%clk 0:00:19]} 40. Bd1 {[%clk 0:00:51]}  Nf4 {[%clk 0:00:19]} 41. Rg4 {[%clk 0:00:50]}  Rf6 {[%clk 0:00:19]} 42. h4 {[%clk 0:00:49]}  e3 {[%clk 0:00:18]} 43. fxe3 {[%clk 0:00:40]}  Nd5 {[%clk 0:00:13]} 44. Rxd4 {[%clk 0:00:40]}  Nxe3+ {[%clk 0:00:13]} 45. Kf2 {[%clk 0:00:41]}  Nxd1+ {[%clk 0:00:13]} 46. Rxd1 {[%clk 0:00:42]}  Rf4 {[%clk 0:00:12]} 47. Rh1 {[%clk 0:00:42]}  Rf5 {[%clk 0:00:01]} 48. h5 {[%clk 0:00:42]} 1-0


[Site "https://www.chess.com"]

[Event "Titled Tuesday Blitz July 18 Late 2023"]
[White "Sos Andreu, Eric"]
[Black "Bachmann, Axel"]
[WhiteFideId "22247017"]
[BlackFideId "3700488"]
[WhiteElo "2481"]
[BlackElo "2834"]
[Result "0-1"]
[Round "3"]
[TimeControl "180+2"]
[Date "2023.07.18"]
[WhiteClock "0:00:09"]
[BlackClock "0:00:31"]
[Board "67"]

1. d4 {[%clk 0:03:00]}  Nf6 {[%clk 0:02:53]} 2. c4 {[%clk 0:03:01]}  c5 {[%clk 0:02:53]} 3. d5 {[%clk 0:03:01]}  e6 {[%clk 0:02:54]} 4. Nc3 {[%clk 0:03:00]}  exd5 {[%clk 0:02:51]} 5. cxd5 {[%clk 0:03:01]}  d6 {[%clk 0:02:52]} 6. Nf3 {[%clk 0:02:59]}  g6 {[%clk 0:02:47]} 7. g3 {[%clk 0:02:59]}  Bg7 {[%clk 0:02:41]} 8. Bg2 {[%clk 0:02:59]}  O-O {[%clk 0:02:42]} 9. O-O {[%clk 0:03:00]}  Na6 {[%clk 0:02:05]} 10. Bf4 {[%clk 0:02:47]}  Nh5 {[%clk 0:01:52]} 11. Bg5 {[%clk 0:02:45]}  Nf6 {[%clk 0:01:47]} 12. e4 {[%clk 0:02:32]}  Bg4 {[%clk 0:01:44]} 13. h3 {[%clk 0:02:29]}  Bxf3 {[%clk 0:01:43]} 14. Bxf3 {[%clk 0:02:28]}  h6 {[%clk 0:01:44]} 15. Bf4 {[%clk 0:02:25]}  Re8 {[%clk 0:01:38]} 16. Re1 {[%clk 0:02:13]}  Nd7 {[%clk 0:01:28]} 17. Bxd6 {[%clk 0:02:03]}  Qb6 {[%clk 0:01:25]} 18. Bf4 {[%clk 0:02:00]}  Qxb2 {[%clk 0:01:25]} 19. e5 {[%clk 0:01:33]}  Nxe5 {[%clk 0:01:16]} 20. Na4 {[%clk 0:01:25]}  Qxa1 {[%clk 0:01:09]} 21. Bxe5 {[%clk 0:00:31]}  Qxd1 {[%clk 0:01:08]} 22. Rxd1 {[%clk 0:00:31]}  Bxe5 {[%clk 0:01:02]} 23. d6 {[%clk 0:00:31]}  Rad8 {[%clk 0:01:01]} 24. Bxb7 {[%clk 0:00:31]}  Nb4 {[%clk 0:00:59]} 25. d7 {[%clk 0:00:26]}  Re7 {[%clk 0:00:58]} 26. Nxc5 {[%clk 0:00:25]}  Bc7 {[%clk 0:00:41]} 27. Bc8 {[%clk 0:00:24]}  Bb6 {[%clk 0:00:31]} 28. Nb7 {[%clk 0:00:24]}  Nxa2 {[%clk 0:00:31]} 29. Nxd8 {[%clk 0:00:23]}  Bxd8 {[%clk 0:00:32]} 30. Ra1 {[%clk 0:00:22]}  Re2 {[%clk 0:00:30]} 31. Ba6 {[%clk 0:00:19]}  Rc2 {[%clk 0:00:29]} 32. Re1 {[%clk 0:00:17]}  Rc1 {[%clk 0:00:29]} 33. Rxc1 {[%clk 0:00:14]}  Nxc1 {[%clk 0:00:30]} 34. Kf1 {[%clk 0:00:15]}  Nb3 {[%clk 0:00:29]} 35. Ke2 {[%clk 0:00:13]}  Nc5 {[%clk 0:00:29]} 36. Bc8 {[%clk 0:00:14]}  Kf8 {[%clk 0:00:29]} 37. Ke3 {[%clk 0:00:14]}  Ke7 {[%clk 0:00:29]} 38. Kd4 {[%clk 0:00:15]}  Nxd7 {[%clk 0:00:30]} 39. Bb7 {[%clk 0:00:10]}  Bb6+ {[%clk 0:00:31]} 40. Ke4 {[%clk 0:00:10]}  Bxf2 {[%clk 0:00:32]} 41. g4 {[%clk 0:00:09]}  Nc5+ {[%clk 0:00:31]} 0-1


[Site "https://www.chess.com"]

[Event "Titled Tuesday Blitz July 18 Late 2023"]
[White "Van Foreest, Machteld"]
[Black "Schmakel, Sam"]
[WhiteFideId "1051563"]
[BlackFideId "2039311"]
[WhiteElo "2478"]
[BlackElo "2750"]
[Result "1-0"]
[Round "3"]
[TimeControl "180+2"]
[Date "2023.07.18"]
[WhiteClock "0:00:32"]
[BlackClock "0:00:06"]
[Board "69"]

1. e4 {[%clk 0:03:00]}  Nc6 {[%clk 0:02:58]} 2. Nf3 {[%clk 0:02:58]}  d6 {[%clk 0:02:58]} 3. d4 {[%clk 0:02:57]}  Nf6 {[%clk 0:02:58]} 4. Nc3 {[%clk 0:02:53]}  g6 {[%clk 0:02:59]} 5. Be2 {[%clk 0:02:52]}  Bg7 {[%clk 0:02:59]} 6. O-O {[%clk 0:02:52]}  O-O {[%clk 0:02:58]} 7. h4 {[%clk 0:02:52]}  e5 {[%clk 0:02:49]} 8. dxe5 {[%clk 0:02:39]}  dxe5 {[%clk 0:02:48]} 9. Qxd8 {[%clk 0:02:39]}  Rxd8 {[%clk 0:02:48]} 10. Bg5 {[%clk 0:02:39]}  h6 {[%clk 0:02:39]} 11. Bxf6 {[%clk 0:02:39]}  Bxf6 {[%clk 0:02:40]} 12. Nd5 {[%clk 0:02:39]}  Kg7 {[%clk 0:02:40]} 13. Nxc7 {[%clk 0:02:37]}  Rb8 {[%clk 0:02:41]} 14. Nd5 {[%clk 0:02:38]}  Bg4 {[%clk 0:02:39]} 15. Nxf6 {[%clk 0:01:51]}  Kxf6 {[%clk 0:02:39]} 16. Rfd1 {[%clk 0:01:44]}  Bxf3 {[%clk 0:02:37]} 17. Bxf3 {[%clk 0:01:44]}  Nd4 {[%clk 0:02:38]} 18. c3 {[%clk 0:01:23]}  Nxf3+ {[%clk 0:02:37]} 19. gxf3 {[%clk 0:01:24]}  Ke6 {[%clk 0:02:36]} 20. Kg2 {[%clk 0:01:24]}  f5 {[%clk 0:02:35]} 21. Kg3 {[%clk 0:01:14]}  b5 {[%clk 0:02:21]} 22. Rxd8 {[%clk 0:01:03]}  Rxd8 {[%clk 0:02:20]} 23. a4 {[%clk 0:01:04]}  b4 {[%clk 0:02:09]} 24. cxb4 {[%clk 0:01:01]}  Rd3 {[%clk 0:02:00]} 25. exf5+ {[%clk 0:01:00]}  gxf5 {[%clk 0:01:52]} 26. b5 {[%clk 0:01:00]}  h5 {[%clk 0:01:32]} 27. a5 {[%clk 0:00:58]}  f4+ {[%clk 0:01:03]} 28. Kg2 {[%clk 0:00:58]}  Rb3 {[%clk 0:00:48]} 29. b6 {[%clk 0:00:58]}  a6 {[%clk 0:00:48]} 30. Rc1 {[%clk 0:00:58]}  Rxb2 {[%clk 0:00:49]} 31. Rc7 {[%clk 0:00:51]}  Kd5 {[%clk 0:00:50]} 32. Ra7 {[%clk 0:00:49]}  e4 {[%clk 0:00:46]} 33. fxe4+ {[%clk 0:00:50]}  Kxe4 {[%clk 0:00:47]} 34. Rxa6 {[%clk 0:00:50]}  f3+ {[%clk 0:00:47]} 35. Kg3 {[%clk 0:00:50]}  Rb1 {[%clk 0:00:47]} 36. Ra8 {[%clk 0:00:43]}  Rg1+ {[%clk 0:00:46]} 37. Kh2 {[%clk 0:00:42]}  Rg2+ {[%clk 0:00:46]} 38. Kh3 {[%clk 0:00:37]}  Rg7 {[%clk 0:00:10]} 39. Re8+ {[%clk 0:00:36]}  Kf4 {[%clk 0:00:10]} 40. Rf8+ {[%clk 0:00:34]}  Ke4 {[%clk 0:00:09]} 41. a6 {[%clk 0:00:35]}  Rg1 {[%clk 0:00:06]} 42. a7 {[%clk 0:00:32]}  Rh1+ {[%clk 0:00:07]} 43. Kg3 {[%clk 0:00:32]}  Rg1+ {[%clk 0:00:06]} 44. Kh2 {[%clk 0:00:32]} 1-0


[Site "https://www.chess.com"]

[Event "Titled Tuesday Blitz July 18 Late 2023"]
[White "Fernandez, Daniel"]
[Black "Toniutti, Ezio"]
[WhiteFideId "2015390"]
[BlackFideId "113034"]
[WhiteElo "2718"]
[BlackElo "2478"]
[Result "1-0"]
[Round "3"]
[TimeControl "180+2"]
[Date "2023.07.18"]
[WhiteClock "0:02:39"]
[BlackClock "0:01:12"]
[Board "70"]

1. b3 {[%clk 0:03:00]}  d5 {[%clk 0:02:56]} 2. Bb2 {[%clk 0:03:01]}  Bf5 {[%clk 0:02:56]} 3. f4 {[%clk 0:03:02]}  e6 {[%clk 0:02:56]} 4. Nf3 {[%clk 0:03:02]}  Nf6 {[%clk 0:02:56]} 5. e3 {[%clk 0:03:03]}  Be7 {[%clk 0:02:57]} 6. Be2 {[%clk 0:03:03]}  h6 {[%clk 0:02:55]} 7. O-O {[%clk 0:02:58]}  c5 {[%clk 0:02:55]} 8. c4 {[%clk 0:02:58]}  O-O {[%clk 0:02:51]} 9. Ne5 {[%clk 0:02:58]}  Nbd7 {[%clk 0:02:48]} 10. d3 {[%clk 0:02:58]}  Nxe5 {[%clk 0:02:46]} 11. fxe5 {[%clk 0:02:59]}  Nh7 {[%clk 0:02:10]} 12. cxd5 {[%clk 0:02:58]}  Bg5 {[%clk 0:02:03]} 13. e4 {[%clk 0:02:58]}  Bg6 {[%clk 0:01:58]} 14. Nc3 {[%clk 0:02:57]}  a6 {[%clk 0:01:52]} 15. Kh1 {[%clk 0:02:56]}  b5 {[%clk 0:01:52]} 16. d4 {[%clk 0:02:53]}  cxd4 {[%clk 0:01:45]} 17. Qxd4 {[%clk 0:02:52]}  Rc8 {[%clk 0:01:45]} 18. Rad1 {[%clk 0:02:49]}  Qa5 {[%clk 0:01:43]} 19. b4 {[%clk 0:02:48]}  Qc7 {[%clk 0:01:37]} 20. a4 {[%clk 0:02:47]}  bxa4 {[%clk 0:01:37]} 21. Bxa6 {[%clk 0:02:46]}  Rb8 {[%clk 0:01:34]} 22. Ba3 {[%clk 0:02:44]}  Rfd8 {[%clk 0:01:32]} 23. b5 {[%clk 0:02:42]}  exd5 {[%clk 0:01:26]} 24. exd5 {[%clk 0:02:42]}  Nf8 {[%clk 0:01:22]} 25. Bxf8 {[%clk 0:02:39]}  Rxf8 {[%clk 0:01:21]} 26. d6 {[%clk 0:02:39]}  Qd7 {[%clk 0:01:12]} 27. Nxa4 {[%clk 0:02:39]} 1-0


[Site "https://www.chess.com"]

[Event "Titled Tuesday Blitz July 18 Late 2023"]
[White "Petukhov, Dmitry"]
[Black "Volovich, Vasily"]
[WhiteFideId "4142748"]
[BlackFideId "34169676"]
[WhiteElo "2477"]
[BlackElo "2701"]
[Result "0-1"]
[Round "3"]
[TimeControl "180+2"]
[Date "2023.07.18"]
[WhiteClock "0:02:44"]
[BlackClock "0:02:36"]
[Board "71"]

1. e4 {[%clk 0:02:59]}  e6 {[%clk 0:03:00]} 2. d4 {[%clk 0:02:59]}  d5 {[%clk 0:03:00]} 3. e5 {[%clk 0:02:59]}  c5 {[%clk 0:02:59]} 4. c3 {[%clk 0:03:00]}  Nc6 {[%clk 0:03:00]} 5. Nf3 {[%clk 0:03:01]}  Bd7 {[%clk 0:03:00]} 6. a3 {[%clk 0:03:01]}  f6 {[%clk 0:03:01]} 7. exf6 {[%clk 0:03:01]}  Nxf6 {[%clk 0:03:02]} 8. b4 {[%clk 0:03:02]}  cxd4 {[%clk 0:03:01]} 9. cxd4 {[%clk 0:03:03]}  Bd6 {[%clk 0:03:02]} 10. Bb2 {[%clk 0:03:04]}  Rc8 {[%clk 0:03:02]} 11. Bd3 {[%clk 0:03:04]}  O-O {[%clk 0:03:02]} 12. O-O {[%clk 0:03:04]}  Ne4 {[%clk 0:02:55]} 13. Nbd2 {[%clk 0:03:00]}  Nxd2 {[%clk 0:02:51]} 14. Qxd2 {[%clk 0:03:00]}  Rxf3 {[%clk 0:02:47]} 15. gxf3 {[%clk 0:03:01]}  Qh4 {[%clk 0:02:47]} 16. f4 {[%clk 0:02:56]}  Bxf4 {[%clk 0:02:44]} 17. Bxh7+ {[%clk 0:02:55]}  Kh8 {[%clk 0:02:37]} 18. Qd3 {[%clk 0:02:44]}  Qxh2# {[%clk 0:02:36]} 0-1


[Site "https://www.chess.com"]